bitfinex/quotes_BTCUSD_20241124
["timestamp","ask_amount","ask_price","bid_price","bid_amount"]
[1732461041745,0.103369,96740.0,96738.0,0.18320367]
[1732461041746,0.35297,96739.0,96738.0,0.18320367]
[1732461042006,0.53668427,96739.0,96738.0,0.16243618]
[1732461042222,2.21648478,96739.0,96738.0,0.16243618]
[1732461042544,2.18668427,96739.0,96738.0,0.14018184]
[1732461043707,2.19745051,96739.0,96738.0,0.14018184]
[1732461045598,0.69745051,96739.0,96738.0,0.14018184]
[1732461045884,0.69745051,96739.0,96738.0,0.03681184]
[1732461045885,0.93033655,96739.0,96738.0,0.03681184]
[1732461046119,0.582677,96733.0,96732.0,0.22919474]
[1732461046348,0.68469127,96733.0,96732.0,0.22919474]
[1732461046570,0.402,96732.0,96731.0,0.0008576]
[1732461046798,0.459282,96728.0,96727.0,0.27482547]
[1732461047025,0.56329627,96728.0,96727.0,0.27482547]
[1732461047272,0.57639627,96728.0,96727.0,0.27482547]
[1732461047500,2.30928231,96728.0,96727.0,0.13992883]
[1732461047770,2.30928231,96728.0,96727.0,0.11925183]
[1732461047988,2.41446713,96728.0,96727.0,0.11925183]
[1732461048653,2.41446713,96728.0,96727.0,0.04115183]
[1732461050041,0.206805,96709.0,96702.0,0.023]
[1732461050341,0.103409,96703.0,96702.0,0.023]
[1732461051475,0.20570355,96703.0,96702.0,0.023]
[1732461051957,0.103409,96703.0,96702.0,0.023]
[1732461052198,0.2073573,96703.0,96702.0,0.023]
[1732461052693,0.103414,96699.0,96698.0,0.023]
[1732461053377,0.20424552,96699.0,96698.0,0.023]
[1732461053839,0.103415,96697.0,96695.0,0.0008575]
[1732461055328,0.14454952,96697.0,96695.0,0.0008575]
[1732461058475,0.14454952,96697.0,96696.0,0.0009576]
[1732461058689,0.14454952,96697.0,96696.0,0.0239576]
[1732461065453,0.24656379,96697.0,96696.0,0.0239576]
[1732461066775,0.14454952,96697.0,96696.0,0.0239576]
[1732461067022,0.103415,96697.0,96696.0,0.0991576]
[1732461067275,0.09955894,96706.0,96697.0,0.082732]
[1732461067531,0.103409,96703.0,96698.0,0.082731]
[1732461067779,0.09955894,96706.0,96705.0,0.180925]
[1732461068023,0.103399,96713.0,96707.0,0.023]
[1732461068233,0.01076712,96736.0,96713.0,0.023]
[1732461068450,0.206746,96737.0,96727.0,0.0683]
[1732461068917,0.206751,96735.0,96727.0,0.0683]
[1732461069169,0.0413786,96738.0,96727.0,0.0683]
[1732461069170,0.103379,96731.0,96727.0,0.0683]
[1732461069425,0.20675,96736.0,96727.0,0.0683]
[1732461069620,0.103381,96729.0,96727.0,0.0683]
[1732461069833,0.20675,96736.0,96727.0,0.0683]
[1732461069834,0.103381,96730.0,96727.0,0.0683]
[1732461070033,0.20675,96736.0,96727.0,0.0683]
[1732461070252,0.04044451,96739.0,96727.0,0.0683]
[1732461070253,0.103382,96728.0,96727.0,0.0683]
[1732461070469,0.206756,96732.0,96727.0,0.0683]
[1732461070470,0.04044451,96739.0,96727.0,0.0683]
[1732461070667,0.103381,96730.0,96727.0,0.0683]
[1732461070874,0.103382,96728.0,96727.0,0.0683]
[1732461071493,0.206749,96736.0,96727.0,0.0683]
[1732461071494,0.103379,96732.0,96727.0,0.0683]
[1732461071696,0.103381,96729.0,96727.0,0.0683]
[1732461071911,0.103382,96728.0,96727.0,0.0683]
[1732461072116,0.206749,96736.0,96727.0,0.0683]
[1732461072323,0.103382,96728.0,96727.0,0.0683]
[1732461072536,0.103382,96728.0,96727.0,0.023]
[1732461072754,0.206749,96736.0,96718.0,0.023]
[1732461073060,0.206749,96736.0,96720.0,0.082712]
[1732461073193,0.103379,96731.0,96725.0,0.082707]
[1732461073447,0.20675,96735.0,96726.0,0.023]
[1732461073639,0.04044451,96739.0,96721.0,0.105711]
[1732461073849,0.04044451,96739.0,96720.0,0.023]
[1732461074064,0.103387,96724.0,96720.0,0.023]
[1732461074289,0.2084692,96733.0,96722.0,0.023]
[1732461074536,0.0017152,96733.0,96732.0,0.023]
[1732461074986,0.0017152,96733.0,96732.0,0.105702]
[1732461075194,0.0017152,96733.0,96732.0,0.023]
[1732461075641,0.1050922,96733.0,96732.0,0.023]
[1732461075853,0.0017152,96733.0,96732.0,0.023]
[1732461076276,0.0017152,96733.0,96732.0,0.105702]
[1732461076525,0.0017152,96733.0,96732.0,0.023]
[1732461076708,0.0017152,96733.0,96732.0,0.105702]
[1732461077140,0.0017152,96733.0,96732.0,0.151002]
[1732461082729,0.0017152,96733.0,96732.0,0.0683]
[1732461082968,0.0017152,96733.0,96732.0,0.151002]
[1732461084496,0.0017152,96733.0,96732.0,0.15203575]
[1732461084701,0.0017152,96733.0,96732.0,0.33511627]
[1732461085651,0.0017164,96754.0,96753.0,0.082684]
[1732461085865,0.0017164,96754.0,96753.0,0.234684]
[1732461091032,0.0017164,96754.0,96753.0,0.23462814]
[1732461093970,0.0017164,96754.0,96753.0,0.152]
[1732461094165,0.1050704,96754.0,96753.0,0.152]
[1732461094397,0.0017164,96754.0,96745.0,0.0821]
[1732461094596,0.103363,96746.0,96745.0,0.0821]
[1732461095833,0.103363,96746.0,96745.0,0.1051]
[1732461098770,0.103363,96746.0,96745.0,0.023]
[1732461099001,0.103373,96737.0,96736.0,0.023]
[1732461106633,0.10337,96740.0,96736.0,0.023]
[1732461106851,0.04062143,96751.0,96736.0,0.023]
[1732461107061,0.103373,96737.0,96736.0,0.023]
[1732461107291,0.103373,96737.0,96736.0,0.0238574]
[1732461107755,0.413422,96753.0,96737.0,0.072361]
[1732461108007,0.413422,96753.0,96736.0,0.0962184]
[1732461108008,0.103356,96753.0,96747.0,0.072353]
[1732461108229,0.206697,96760.0,96750.0,0.023]
[1732461108454,0.206697,96760.0,96753.0,0.023]
[1732461108455,0.103351,96758.0,96753.0,0.023]
[1732461108673,0.206696,96761.0,96753.0,0.095349]
[1732461108904,0.206689,96764.0,96753.0,0.095349]
[1732461108905,0.103349,96760.0,96753.0,0.095349]
[1732461109127,0.103351,96758.0,96752.0,0.023]
[1732461109338,0.206696,96761.0,96752.0,0.095349]
[1732461109591,0.103351,96757.0,96751.0,0.07235]
[1732461109811,0.103351,96757.0,96749.0,0.095352]
[1732461110251,0.103351,96757.0,96752.0,0.023]
[1732461110469,0.103354,96755.0,96750.0,0.023]
[1732461110691,0.103353,96756.0,96752.0,0.023]
[1732461110915,0.206703,96758.0,96752.0,0.023]
[1732461111126,0.206703,96758.0,96749.0,0.023]
[1732461111390,0.1050714,96754.0,96749.0,0.167702]
[1732461111640,0.1050714,96754.0,96749.0,0.095351]
[1732461112064,0.2084264,96754.0,96749.0,0.023]
[1732461112312,0.103359,96750.0,96749.0,0.023]
[1732461112540,0.206711,96753.0,96749.0,0.023]
[1732461112791,0.103357,96752.0,96749.0,0.023]
[1732461113237,0.206711,96753.0,96749.0,0.023]
[1732461113475,0.0017164,96754.0,96749.0,0.023]
[1732461114195,0.103359,96750.0,96749.0,0.023]
[1732461114620,0.103357,96752.0,96749.0,0.023]
[1732461114831,0.0017164,96754.0,96749.0,0.023]
[1732461115054,0.103357,96752.0,96749.0,0.023]
[1732461115265,0.0017164,96754.0,96749.0,0.023]
[1732461115480,0.103355,96753.0,96749.0,0.023]
[1732461115691,0.103359,96750.0,96749.0,0.023]
[1732461115908,0.0017164,96754.0,96749.0,0.023]
[1732461116342,0.103359,96750.0,96749.0,0.023]
[1732461116785,0.103357,96752.0,96749.0,0.023]
[1732461117007,0.004,96753.0,96749.0,0.023]
[1732461117008,0.107356,96753.0,96749.0,0.023]
[1732461117238,0.107356,96753.0,96749.0,0.095352]
[1732461117661,0.004,96753.0,96751.0,0.023]
[1732461118091,0.004,96753.0,96751.0,0.1677]
[1732461118303,0.004,96753.0,96751.0,0.09535]
[1732461119053,0.004,96753.0,96750.0,0.023]
[1732461119278,0.0057148,96753.0,96750.0,0.023]
[1732461119484,0.0057148,96753.0,96749.0,0.072351]
[1732461119698,0.0057148,96753.0,96750.0,0.072351]
[1732461119894,0.0057148,96753.0,96748.0,0.202152]
[1732461120109,0.1090708,96753.0,96748.0,0.202152]
[1732461120349,0.0057148,96753.0,96749.0,0.072351]
[1732461121004,0.0057148,96753.0,96750.0,0.072351]
[1732461121224,0.0057148,96753.0,96748.0,0.1298]
[1732461121448,0.0057148,96753.0,96749.0,0.023]
[1732461121670,0.0057148,96753.0,96752.0,0.023]
[1732461122128,0.0057148,96753.0,96752.0,0.095349]
[1732461122362,0.0057148,96753.0,96752.0,0.023]
[1732461122825,0.0057148,96753.0,96751.0,0.09535]
[1732461123248,0.0057148,96753.0,96752.0,0.023]
[1732461124822,0.1057148,96753.0,96749.0,0.095351]
[1732461125060,0.1057148,96753.0,96750.0,0.072351]
[1732461125269,0.1057148,96753.0,96752.0,0.095349]
[1732461127526,0.1057148,96753.0,96752.0,0.19736327]
[1732461134523,0.1057148,96753.0,96752.0,0.4742547]
[1732461134737,0.1057148,96753.0,96752.0,0.31896327]
[1732461135592,0.1057148,96753.0,96752.0,0.59583947]
[1732461135801,0.1057148,96753.0,96752.0,0.31896327]
[1732461136441,0.1057148,96753.0,96752.0,0.5958389]
[1732461137339,0.1057148,96753.0,96752.0,0.31896327]
[1732461137589,0.1057148,96753.0,96752.0,0.59584825]
[1732461139126,0.1057148,96753.0,96752.0,0.59587791]
[1732461139588,0.1057148,96753.0,96752.0,0.59591595]
[1732461139825,0.1057148,96753.0,96752.0,0.31896327]
[1732461140027,0.1057148,96753.0,96752.0,0.59591633]
[1732461141087,0.1057148,96753.0,96752.0,0.21896327]
[1732461143325,0.1057148,96753.0,96752.0,1.06891633]
[1732461143545,0.0017164,96765.0,96764.0,0.09534]
[1732461143783,0.0017164,96765.0,96764.0,0.51895427]
[1732461144021,0.0017164,96765.0,96764.0,0.52095427]
[1732461144260,0.0017164,96770.0,96769.0,0.297337]
[1732461144502,0.0017156,96793.0,96785.0,0.072325]
[1732461144702,0.0017156,96793.0,96785.0,0.31973927]
[1732461146237,0.0017156,96793.0,96785.0,0.32173927]
[1732461146446,0.0017156,96793.0,96785.0,0.31973927]
[1732461146868,0.0017156,96793.0,96792.0,0.07232]
[1732461147085,0.0017156,96793.0,96792.0,0.19733427]
[1732461147945,0.0017156,96793.0,96792.0,0.19836724]
[1732461148152,0.0017156,96793.0,96792.0,0.4281988]
[1732461148383,0.0017156,96793.0,96792.0,0.19733427]
[1732461148601,0.0017156,96793.0,96792.0,0.42813246]
[1732461148832,0.0017156,96793.0,96792.0,0.19733427]
[1732461149052,0.0017156,96793.0,96792.0,0.42814339]
[1732461149263,0.0017156,96793.0,96792.0,0.62711841]
[1732461149550,0.0017156,96793.0,96792.0,0.39933427]
[1732461149773,0.0017156,96793.0,96792.0,0.70291841]
[1732461149991,0.0017156,96793.0,96792.0,0.47313427]
[1732461150661,0.0017156,96793.0,96792.0,0.7027302]
[1732461150877,0.0017156,96793.0,96792.0,0.47313427]
[1732461152167,0.0017156,96793.0,96792.0,0.27313427]
[1732461152379,0.0017156,96793.0,96792.0,0.10201427]
[1732461152639,0.03788751,96793.0,96792.0,0.10201427]
[1732461152842,0.0017156,96793.0,96789.0,0.072321]
[1732461153283,0.0017156,96793.0,96787.0,0.072323]
[1732461153500,0.0017156,96793.0,96785.0,0.072324]
[1732461153711,0.0017156,96793.0,96788.0,0.072322]
[1732461153948,0.0017156,96793.0,96786.0,0.10201427]
[1732461154419,0.103314,96792.0,96786.0,0.10201427]
[1732461154659,0.103314,96792.0,96787.0,0.023]
[1732461154927,0.0017156,96793.0,96787.0,0.023]
[1732461155586,0.0017156,96793.0,96789.0,0.072322]
[1732461155803,0.0017156,96793.0,96788.0,0.072322]
[1732461156039,0.0017156,96793.0,96787.0,0.095323]
[1732461156279,0.0017156,96793.0,96790.0,0.023]
[1732461156493,0.0017156,96793.0,96790.0,0.095321]
[1732461156701,0.0017156,96793.0,96790.0,0.023]
[1732461158559,0.0017156,96793.0,96792.0,0.023]
[1732461158971,0.0017156,96793.0,96787.0,0.023]
[1732461159187,0.0017156,96793.0,96790.0,0.023]
[1732461159413,0.0017156,96793.0,96791.0,0.10201427]
[1732461159844,0.0017156,96793.0,96792.0,0.023]
[1732461160066,0.206612,96800.0,96792.0,0.023]
[1732461160067,0.0950246,96797.0,96792.0,0.023]
[1732461160271,0.10331,96796.0,96792.0,0.023]
[1732461161552,0.103308,96798.0,96792.0,0.023]
[1732461161997,0.206613,96799.0,96792.0,0.023]
[1732461162258,0.103309,96797.0,96792.0,0.023]
[1732461162456,0.206613,96799.0,96792.0,0.023]
[1732461162661,0.103311,96795.0,96792.0,0.023]
[1732461162881,0.103313,96793.0,96792.0,0.023]
[1732461163091,0.206613,96799.0,96792.0,0.023]
[1732461163287,0.103309,96797.0,96792.0,0.023]
[1732461163503,0.103313,96793.0,96792.0,0.023]
[1732461163711,0.103313,96793.0,96770.0,0.0740504]
[1732461163712,0.03565444,96796.0,96773.0,0.22965875]
[1732461163933,0.0017176,96807.0,96770.0,0.0017144]
[1732461163934,0.103336,96771.0,96770.0,0.0017144]
[1732461164904,0.20666,96778.0,96770.0,0.0017144]
[1732461165150,0.1267,96795.0,96770.0,0.0017144]
[1732461165352,0.103331,96776.0,96770.0,0.0740504]
[1732461165788,0.16675456,96795.0,96771.0,0.10201427]
[1732461165992,0.206653,96781.0,96773.0,0.072334]
[1732461166195,0.103328,96780.0,96774.0,0.072333]
[1732461166421,0.103328,96780.0,96771.0,0.10201427]
[1732461166422,0.206656,96780.0,96771.0,0.17434927]
[1732461166623,0.103329,96778.0,96772.0,0.095334]
[1732461166847,0.103329,96778.0,96772.0,0.19734827]
[1732461167049,0.206656,96780.0,96772.0,0.19734827]
[1732461167478,0.103329,96778.0,96772.0,0.19734827]
[1732461167679,0.10333,96777.0,96772.0,0.19734827]
[1732461167895,0.206656,96779.0,96772.0,0.12501427]
[1732461168110,0.103327,96780.0,96773.0,0.072334]
[1732461168319,0.206635,96789.0,96772.0,0.12501427]
[1732461168320,0.10333,96778.0,96774.0,0.023]
[1732461168953,0.10333,96777.0,96773.0,0.023]
[1732461169163,0.103328,96780.0,96773.0,0.023]
[1732461169429,0.103326,96782.0,96773.0,0.023]
[1732461169659,0.103328,96779.0,96773.0,0.023]
[1732461169901,0.103328,96779.0,96773.0,0.095333]
[1732461170341,0.103326,96781.0,96773.0,0.023]
[1732461170581,0.206649,96782.0,96773.0,0.023]
[1732461170992,0.103327,96780.0,96774.0,0.072333]
[1732461171310,0.0008572,96793.0,96773.0,0.023]
[1732461171311,0.413264,96790.0,96773.0,0.023]
[1732461171314,0.10333,96777.0,96773.0,0.023]
[1732461171526,0.0008572,96793.0,96773.0,0.023]
[1732461171770,0.04216162,96793.0,96775.0,0.023]
[1732461171977,0.20663,96791.0,96773.0,0.023]
[1732461172462,0.103331,96777.0,96773.0,0.023]
[1732461172921,0.20663,96791.0,96773.0,0.023]
[1732461173164,0.04216162,96793.0,96773.0,0.023]
[1732461173165,0.206628,96792.0,96773.0,0.023]
[1732461173394,0.103329,96778.0,96773.0,0.023]
[1732461173626,0.04216162,96793.0,96773.0,0.023]
[1732461173871,0.206635,96789.0,96773.0,0.023]
[1732461174077,0.10333,96778.0,96773.0,0.023]
[1732461174300,0.103331,96776.0,96773.0,0.023]
[1732461174526,0.206651,96782.0,96773.0,0.023]
[1732461174749,0.10333,96777.0,96773.0,0.023]
[1732461174988,0.206651,96782.0,96773.0,0.023]
[1732461175211,0.103333,96774.0,96773.0,0.023]
[1732461176558,0.206651,96782.0,96770.0,0.0017144]
[1732461176559,0.103336,96771.0,96770.0,0.0017144]
[1732461179687,0.17969375,96771.0,96770.0,0.0017144]
[1732461179913,0.14403931,96771.0,96770.0,0.0017144]
[1732461185122,0.28161269,96771.0,96770.0,0.0017144]
[1732461185340,0.43361269,96771.0,96770.0,0.0017144]
[1732461185777,0.43161269,96771.0,96770.0,0.0017144]
[1732461185990,1.93161269,96771.0,96770.0,0.0017144]
[1732461186834,1.93361269,96771.0,96770.0,0.0017144]
[1732461187289,0.43361269,96771.0,96770.0,0.0017144]
[1732461187528,0.43161269,96771.0,96770.0,0.0017144]
[1732461187805,0.39605358,96771.0,96770.0,0.0017144]
[1732461188520,0.29403931,96771.0,96770.0,0.0017144]
[1732461189856,0.43206181,96771.0,96770.0,0.0017144]
[1732461190630,0.43406181,96771.0,96770.0,0.0017144]
[1732461190843,0.43206181,96771.0,96770.0,0.0017144]
[1732461191915,0.39605358,96771.0,96770.0,0.0017144]
[1732461197225,0.29403931,96771.0,96770.0,0.0017144]
[1732461198996,0.14403931,96771.0,96770.0,0.0017144]
[1732461199236,0.17101571,96785.0,96770.0,0.0017144]
[1732461199502,0.103336,96771.0,96770.0,0.0017144]
[1732461199961,0.04114094,96785.0,96770.0,0.0017144]
[1732461200198,0.206664,96776.0,96771.0,0.0782]
[1732461200409,0.04114094,96785.0,96771.0,0.0782]
[1732461200629,0.24778494,96785.0,96771.0,0.0782]
[1732461200858,0.206628,96792.0,96774.0,0.082666]
[1732461201066,0.206628,96792.0,96771.0,0.0782]
[1732461201067,0.103328,96780.0,96773.0,0.082666]
[1732461201282,0.103328,96779.0,96773.0,0.082666]
[1732461201488,0.20665,96782.0,96775.0,0.082665]
[1732461201712,0.103328,96779.0,96774.0,0.082666]
[1732461201922,0.206655,96780.0,96771.0,0.0782]
[1732461202138,0.206658,96778.0,96771.0,0.0782]
[1732461202354,0.206655,96780.0,96771.0,0.160868]
[1732461202355,0.103332,96776.0,96771.0,0.160868]
[1732461202589,0.103333,96774.0,96771.0,0.0782]
[1732461202825,0.103334,96774.0,96771.0,0.0782]
[1732461203040,0.15,96791.0,96771.0,0.0782]
[1732461203324,0.103326,96781.0,96773.0,0.082667]
[1732461203534,0.15,96787.0,96771.0,0.0782]
[1732461203747,0.103327,96780.0,96774.0,0.082666]
[1732461203959,0.15,96787.0,96771.0,0.0782]
[1732461204406,0.206642,96786.0,96777.0,0.082663]
[1732461204618,0.103327,96780.0,96774.0,0.082666]
[1732461204846,0.15,96791.0,96771.0,0.0782]
[1732461205057,0.15,96791.0,96772.0,0.082667]
[1732461205058,0.103329,96778.0,96772.0,0.082667]
[1732461205289,0.103329,96778.0,96771.0,0.0782]
[1732461205517,0.206632,96790.0,96771.0,0.0782]
[1732461205747,0.206632,96790.0,96773.0,0.082667]
[1732461205748,0.15,96786.0,96773.0,0.082667]
[1732461205978,0.103328,96780.0,96774.0,0.082666]
[1732461206461,0.103329,96778.0,96772.0,0.082668]
[1732461206700,0.103329,96778.0,96771.0,0.0782]
[1732461206701,0.103327,96780.0,96775.0,0.082665]
[1732461206933,0.103327,96780.0,96774.0,0.082666]
[1732461207181,0.103328,96779.0,96774.0,0.082666]
[1732461208216,0.103328,96779.0,96771.0,0.0782]
[1732461208217,0.206652,96781.0,96771.0,0.0782]
[1732461208432,0.15,96786.0,96771.0,0.0782]
[1732461208433,0.206647,96783.0,96773.0,0.082667]
[1732461208640,0.206647,96783.0,96771.0,0.160869]
[1732461208641,0.103326,96781.0,96775.0,0.082665]
[1732461208865,0.103327,96780.0,96775.0,0.082665]
[1732461209097,0.103328,96779.0,96773.0,0.082667]
[1732461209319,0.15,96786.0,96771.0,0.0782]
[1732461209748,0.15,96786.0,96772.0,0.082668]
[1732461209953,0.103329,96778.0,96772.0,0.082668]
[1732461210156,0.103327,96780.0,96772.0,0.082668]
[1732461210363,0.206645,96784.0,96771.0,0.0782]
[1732461210589,0.206645,96784.0,96773.0,0.082667]
[1732461210751,0.103329,96779.0,96774.0,0.082666]
[1732461213129,0.206649,96782.0,96771.0,0.30859606]
[1732461213333,0.206652,96781.0,96772.0,0.082668]
[1732461213539,0.10333,96777.0,96772.0,0.082668]
[1732461213755,0.206654,96780.0,96773.0,0.082667]
[1732461213994,0.103329,96778.0,96773.0,0.082667]
[1732461214236,0.10333,96777.0,96771.0,0.39126406]
[1732461214442,0.24626857,96782.0,96771.0,0.39126406]
[1732461214443,0.03961957,96782.0,96771.0,0.30859606]
[1732461214671,0.1,96791.0,96771.0,0.30859606]
[1732461214672,0.103335,96772.0,96771.0,0.30859606]
[1732461214894,0.103335,96772.0,96771.0,0.0782]
[1732461215127,0.103336,96771.0,96770.0,0.0017144]
[1732461215361,0.29073504,96771.0,96770.0,0.0017144]
[1732461215574,0.39274931,96771.0,96770.0,0.0017144]
[1732461215820,1.97154931,96771.0,96770.0,0.0017144]
[1732461216486,0.103359,96750.0,96749.0,0.0008574]
[1732461216695,0.13326008,96750.0,96749.0,0.0008574]
[1732461217125,0.46407435,96750.0,96749.0,0.0008574]
[1732461217554,0.46607435,96750.0,96749.0,0.0008574]
[1732461217774,0.46607435,96750.0,96736.0,0.0008574]
[1732461217775,0.103373,96737.0,96736.0,0.0008574]
[1732461220449,0.14427066,96737.0,96736.0,0.0008574]
[1732461221541,0.03992119,96737.0,96736.0,0.1867564]
[1732461221754,0.11543136,96758.0,96736.0,0.1867564]
[1732461221755,0.206703,96757.0,96737.0,0.023]
[1732461221966,0.103371,96738.0,96737.0,0.023]
[1732461222432,0.103371,96739.0,96737.0,0.023]
[1732461222658,0.103373,96737.0,96736.0,0.0810574]
[1732461222885,0.15,96757.0,96736.0,0.0810574]
[1732461223112,0.206735,96742.0,96736.0,0.0810574]
[1732461223356,0.103372,96738.0,96736.0,0.0810574]
[1732461223789,0.206735,96742.0,96736.0,0.0810574]
[1732461223790,0.103373,96737.0,96736.0,0.0810574]
[1732461224005,0.15,96757.0,96736.0,0.0810574]
[1732461224216,0.15,96757.0,96735.0,0.0261574]
[1732461224462,0.103382,96729.0,96726.0,0.023]
[1732461224696,0.103382,96729.0,96725.0,0.023]
[1732461225149,0.206739,96741.0,96725.0,0.023]
[1732461225150,0.103369,96740.0,96725.0,0.023]
[1732461225375,0.206714,96752.0,96724.0,0.23053559]
[1732461225376,0.15,96751.0,96724.0,0.023]
[1732461225627,0.15,96751.0,96726.0,0.023]
[1732461226542,0.103371,96738.0,96737.0,0.0017144]
[1732461227397,0.15,96757.0,96737.0,0.0017144]
[1732461227611,0.10337,96739.0,96737.0,0.0017144]
[1732461227867,0.15,96757.0,96737.0,0.0017144]
[1732461227868,0.206705,96756.0,96737.0,0.0017144]
[1732461228096,0.18966799,96757.0,96738.0,0.023]
[1732461228562,0.103366,96744.0,96738.0,0.023]
[1732461228768,0.18966799,96757.0,96738.0,0.023]
[1732461228975,0.103363,96746.0,96738.0,0.023]
[1732461229220,0.15,96755.0,96738.0,0.023]
[1732461229431,0.15,96753.0,96738.0,0.023]
[1732461229673,0.356709,96755.0,96739.0,0.082696]
[1732461229923,0.356709,96755.0,96738.0,0.105696]
[1732461230135,0.15,96755.0,96741.0,0.082694]
[1732461230338,0.103364,96745.0,96740.0,0.082695]
[1732461230577,0.103368,96742.0,96738.0,0.023]
[1732461230777,0.103364,96745.0,96740.0,0.082695]
[1732461230981,0.15,96752.0,96739.0,0.082695]
[1732461231264,0.103364,96745.0,96740.0,0.082695]
[1732461231469,0.20672,96749.0,96739.0,0.082695]
[1732461231691,0.20672,96749.0,96740.0,0.082695]
[1732461231921,0.19104061,96752.0,96740.0,0.082695]
[1732461231922,0.04104061,96752.0,96740.0,0.082695]
[1732461232134,0.15,96752.0,96738.0,0.023]
[1732461232350,0.103366,96743.0,96738.0,0.105697]
[1732461232758,0.310094,96745.0,96739.0,0.082696]
[1732461232976,0.103368,96742.0,96738.0,0.023]
[1732461233177,0.15,96752.0,96738.0,0.023]
[1732461233396,0.20672,96749.0,96738.0,0.023]
[1732461233612,0.103365,96745.0,96739.0,0.082696]
[1732461233864,0.103365,96745.0,96738.0,0.023]
[1732461234090,0.20672,96749.0,96738.0,0.105697]
[1732461234327,0.103365,96745.0,96739.0,0.082696]
[1732461234561,0.103365,96745.0,96740.0,0.082695]
[1732461234765,0.206722,96748.0,96741.0,0.082694]
[1732461234766,0.103364,96746.0,96741.0,0.082694]
[1732461235024,0.206724,96747.0,96739.0,0.082696]
[1732461235263,0.103365,96745.0,96739.0,0.165392]
[1732461235468,0.103365,96745.0,96739.0,0.082696]
[1732461235675,0.310086,96747.0,96741.0,0.082694]
[1732461235880,0.15,96752.0,96740.0,0.082695]
[1732461236084,0.15,96752.0,96741.0,0.082695]
[1732461236334,0.103362,96748.0,96743.0,0.082693]
[1732461236573,0.156728,96758.0,96739.0,0.0471]
[1732461236574,0.11543136,96758.0,96752.0,0.082685]
[1732461236816,0.11543136,96758.0,96754.0,0.082683]
[1732461237236,0.11543136,96758.0,96755.0,0.082682]
[1732461237665,0.11543136,96758.0,96754.0,0.082683]
[1732461238149,0.11543136,96758.0,96757.0,0.082681]
[1732461238397,0.11543136,96758.0,96757.0,0.211381]
[1732461238872,0.103335,96773.0,96768.0,0.082671]
[1732461239132,0.103336,96772.0,96767.0,0.082672]
[1732461239609,0.206643,96785.0,96765.0,0.065345]
[1732461239610,0.103337,96771.0,96765.0,0.065345]
[1732461239833,0.15,96784.0,96762.0,0.082676]
[1732461240043,0.15,96784.0,96758.0,0.08268]
[1732461240044,0.206676,96770.0,96763.0,0.082676]
[1732461240276,0.103346,96763.0,96758.0,0.08268]
[1732461240490,0.206686,96765.0,96757.0,0.1287]
[1732461240733,0.15,96782.0,96757.0,0.1287]
[1732461240981,0.206673,96771.0,96754.0,0.082683]
[1732461241183,0.10335,96759.0,96754.0,0.082683]
[1732461241802,0.10335,96759.0,96753.0,0.082684]
[1732461242027,0.10335,96758.0,96753.0,0.082684]
[1732461242460,0.15,96776.0,96747.0,0.10201427]
[1732461242751,0.002,96792.0,96763.0,0.082676]
[1732461242980,0.206676,96770.0,96761.0,0.082677]
[1732461243197,0.10334,96768.0,96761.0,0.082677]
[1732461243416,0.19158312,96779.0,96754.0,0.082683]
[1732461243633,0.19158312,96779.0,96749.0,0.082688]
[1732461243863,0.19158312,96779.0,96750.0,0.10201427]
[1732461244079,0.19158312,96779.0,96754.0,0.082683]
[1732461244287,0.206691,96763.0,96750.0,0.18470027]
[1732461244499,0.19158312,96779.0,96753.0,0.082683]
[1732461244704,0.103343,96765.0,96758.0,0.082679]
[1732461244917,0.206681,96768.0,96753.0,0.10201427]
[1732461245136,0.19158312,96779.0,96754.0,0.082683]
[1732461245137,0.206682,96767.0,96754.0,0.082683]
[1732461245369,0.20669,96764.0,96754.0,0.082683]
[1732461245570,0.103347,96762.0,96757.0,0.082681]
[1732461245824,0.206679,96768.0,96758.0,0.08268]
[1732461246035,0.103344,96765.0,96758.0,0.08268]
[1732461246268,0.206671,96772.0,96758.0,0.08268]
[1732461246478,0.19158312,96779.0,96753.0,0.10201427]
[1732461246742,0.103343,96765.0,96758.0,0.08268]
[1732461246960,0.103343,96765.0,96753.0,0.18469827]
[1732461246961,0.103343,96765.0,96759.0,0.082678]
[1732461247404,0.103344,96764.0,96759.0,0.082678]
[1732461247851,0.103344,96764.0,96759.0,0.165357]
[1732461248145,0.206682,96767.0,96759.0,0.165357]
[1732461248146,0.103343,96765.0,96759.0,0.082678]
[1732461248381,0.103343,96765.0,96760.0,0.082678]
[1732461248606,0.103342,96767.0,96753.0,0.10201427]
[1732461248843,0.04158312,96779.0,96753.0,0.10201427]
[1732461248844,0.206678,96769.0,96761.0,0.082677]
[1732461249053,0.103342,96766.0,96761.0,0.082677]
[1732461249297,0.206678,96769.0,96755.0,0.165366]
[1732461249298,0.103343,96765.0,96759.0,0.082679]
[1732461249508,0.103344,96764.0,96759.0,0.082679]
[1732461249738,0.206682,96767.0,96759.0,0.082679]
[1732461249959,0.103343,96765.0,96759.0,0.082679]
[1732461250646,0.103343,96765.0,96760.0,0.082678]
[1732461250859,0.24824012,96779.0,96764.0,0.082675]
[1732461251075,0.10334,96768.0,96761.0,0.082677]
[1732461251294,0.1042005,96765.0,96759.0,0.072344]
[1732461251501,0.103344,96764.0,96759.0,0.072344]
[1732461251709,0.0008575,96765.0,96759.0,0.072344]
[1732461252414,0.1042005,96765.0,96759.0,0.072344]
[1732461253093,0.1042005,96765.0,96760.0,0.072343]
[1732461253307,0.1042005,96765.0,96759.0,0.144688]
[1732461253777,0.1042005,96765.0,96759.0,0.072344]
[1732461253989,0.1042005,96765.0,96760.0,0.072343]
[1732461254500,0.103345,96763.0,96758.0,0.072344]